fUSD/lending_fUSD_20250606
["ID","MTS","AMOUNT","RATE_DAILY","PERIOD"]
[364676156,1749195089142,-480.0,0.00030821,7]
[364676157,1749195089151,-854.68,0.00030821,7]
[364676158,1749195089162,-485.7175822,0.00030821,7]
[364676159,1749195089172,-695.12,0.00030821,7]
[364676160,1749195089181,-650.15,0.00030821,7]
[364676161,1749195089191,-586.88,0.00030821,7]
[364676162,1749195089200,-6273.93,0.00030821,7]
[364676163,1749195089209,-784.29,0.00030821,7]
[364676164,1749195089219,-501.87,0.00030821,7]
[364676165,1749195089229,-480.0,0.00030821,7]
[364676166,1749195089239,-480.0,0.00030821,7]
[364676167,1749195089249,-480.0,0.00030821,7]
[364676168,1749195089258,-1393.37,0.00030821,7]
[364676169,1749195089268,-480.0,0.00030821,7]
[364676170,1749195089278,-480.0,0.00030821,7]
[364676171,1749195089287,-1018.89,0.00030821,7]
[364676172,1749195089297,-2222.98,0.00030821,7]
[364676173,1749195089306,-701.3,0.00030821,7]
[364676174,1749195089316,-480.0,0.00030821,7]
[364676175,1749195089325,-838.48,0.00030821,7]
[364676176,1749195089335,-2372.89,0.00030821,7]
[364676177,1749195089343,-894.02,0.00030821,7]
[364676178,1749195089356,-7451.07,0.00030821,7]
[364676179,1749195089366,-2119.73,0.00030821,7]
[364676180,1749195089376,-1031.14,0.00030821,7]
[364676181,1749195089385,-480.0,0.00030821,7]
[364676182,1749195089395,-480.0,0.00030821,7]
[364676183,1749195089405,-480.0,0.00030821,7]
[364676184,1749195089416,-480.0,0.00030821,7]
[364676185,1749195089426,-953.26,0.00030821,7]
[364676186,1749195089435,-545.98,0.00030821,7]
[364676187,1749195089446,-981.45,0.00030821,7]
[364676188,1749195089456,-665.71,0.00030821,7]
[364676189,1749195089466,-1003.28,0.00030821,7]
[364676190,1749195089476,-502.03,0.00030821,7]
[364676191,1749195089486,-599.66,0.00030821,7]
[364676192,1749195089496,-3222.48,0.00030821,7]
[364676193,1749195089508,-642.87,0.00030821,2]
[364676194,1749195089518,-895.35,0.00030821,7]
[364676195,1749195089528,-13954.29,0.00030821,7]
[364676196,1749195089538,-821.63,0.00030821,7]
[364676197,1749195089548,-1239.07,0.00030821,7]
[364676198,1749195089558,-2507.72,0.00030821,7]
[364676199,1749195089568,-1029.37,0.00030821,7]
[364676200,1749195089578,-21187.12,0.00030821,7]
[364676201,1749195089589,-1188.22,0.00030821,7]
[364676202,1749195089599,-1023.07,0.00030821,2]
[364676203,1749195089609,-1061.28,0.00030821,7]
[364676204,1749195089620,-4145.62,0.00030821,7]
[364676205,1749195089629,-585.37,0.00030821,7]
[364676206,1749195089639,-480.0,0.00030821,7]
[364676207,1749195089649,-480.0,0.00030821,7]
[364676208,1749195089661,-867.72,0.00030821,7]
[364676209,1749195089671,-81999.01,0.00030821,7]
[364676210,1749195089681,-823.56,0.00030821,7]
[364676211,1749195089690,-818.4,0.00030821,7]
[364676212,1749195089700,-2369.76,0.00030821,7]
[364676213,1749195089710,-883.58,0.00030821,7]
[364676214,1749195089719,-480.0,0.00030821,7]
[364676215,1749195089729,-1357.61,0.00030821,7]
[364676216,1749195089738,-1145.19,0.00030821,7]
[364676217,1749195089748,-480.0,0.00030821,7]
[364676218,1749195089757,-1168.31,0.00030821,7]
[364676219,1749195089766,-1706.77,0.00030821,7]
[364676220,1749195089775,-1552.0,0.00030823,2]
[364676221,1749195089785,-1387.0,0.00030823,2]
[364676222,1749195089795,-527.0,0.00030823,2]
[364676223,1749195089806,-419.0,0.00030823,2]
[364676224,1749195089817,-150.0,0.00030827,7]
[364676225,1749195089836,-150.0,0.00030834,7]
[364676226,1749195089853,-150.0,0.00030839,7]
[364676227,1749195089872,-319.28703344,0.0003084,7]
[364676228,1749195089891,-249.59327405,0.0003084,7]
[364676229,1749195089907,-150.0,0.00030843,7]
[364676230,1749195089925,-150.0,0.00030846,7]
[364676231,1749195089943,-213.0,0.0003085,30]
[364676232,1749195089962,-207.0,0.0003085,2]
[364676233,1749195089983,-212.0,0.0003085,30]
[364676234,1749195090002,-210.0,0.0003085,2]
[364676235,1749195090020,-207.0,0.0003085,2]
[364676236,1749195090037,-1552.0,0.00030851,2]
[364676237,1749195090057,-1387.0,0.00030851,2]
[364676238,1749195090070,-527.0,0.00030851,2]
[364676239,1749195090088,-419.0,0.00030851,2]
[364676240,1749195090102,-150.0,0.00030874,7]
[364676241,1749195090120,-319.28703344,0.00030875,7]
[364676242,1749195090136,-249.59327405,0.00030875,7]
[364676243,1749195090153,-1552.0,0.00030878,2]
[364676244,1749195090170,-1387.0,0.00030878,2]
[364676245,1749195090186,-527.0,0.00030878,2]
[364676246,1749195090201,-419.0,0.00030878,2]
[364676247,1749195090217,-150.0,0.00030887,7]
[364676248,1749195090232,-150.0,0.00030898,7]
[364676249,1749195090246,-399.0,0.000309,2]
[364676250,1749195090262,-150.0,0.00030902,7]
[364676251,1749195090277,-1552.0,0.00030906,2]
[364676252,1749195090292,-1387.0,0.00030906,2]
[364676253,1749195090306,-527.0,0.00030906,2]
[364676254,1749195090322,-419.0,0.00030906,2]
[364676255,1749195090337,-319.28703344,0.00030909,7]
[364676256,1749195090352,-249.59327405,0.00030909,7]
[364676257,1749195090366,-150.0,0.00030909,7]
[364676258,1749195090381,-150.0,0.00030913,7]
[364676259,1749195090397,-150.0,0.00030928,7]
[364676260,1749195090413,-1552.0,0.00030933,2]
[364676261,1749195090429,-1387.0,0.00030933,2]
[364676262,1749195090445,-527.0,0.00030933,2]
[364676263,1749195090460,-419.0,0.00030933,2]
[364676264,1749195090475,-240.23264554,0.00030934,24]
[364676265,1749195090490,-319.28703344,0.00030943,7]
[364676266,1749195090507,-249.59327405,0.00030943,7]
[364676267,1749195090523,-13304.52191,0.00030944,2]
[364676268,1749195090538,-3726.908186,0.00030944,2]
[364676269,1749195090553,-150.0,0.00030952,7]
[364676270,1749195090567,-150.0,0.00030958,7]
[364676271,1749195090582,-1552.0,0.0003096,2]
[364676272,1749195090597,-1387.0,0.0003096,2]
[364676273,1749195090612,-527.0,0.0003096,2]
[364676274,1749195090628,-419.0,0.0003096,2]
[364676275,1749195090642,-150.0,0.00030964,7]
[364676276,1749195090657,-3579.5149874,0.00030965,2]
[364676277,1749195090673,-961.2993389,0.00030965,2]
[364676278,1749195090689,-2360.5358478,0.00030965,2]
[364676279,1749195090704,-23058.0928265,0.00030965,2]
[364676280,1749195090717,-944.4294333,0.00030965,2]
[364676281,1749195090732,-1488.295313,0.00030965,2]
[364676282,1749195090750,-137078.9924008,0.00030965,2]
[364676283,1749195090765,-150.0,0.00030969,7]
[364676284,1749195090779,-400.0,0.0003097,2]
[364676285,1749195090794,-319.28703344,0.00030978,7]
[364676286,1749195090809,-249.59327405,0.00030978,7]
[364676287,1749195090824,-150.0,0.00030978,7]
[364676288,1749195090838,-150.0,0.00030978,7]
[364676289,1749195090852,-151.0,0.00030986,7]
[364676290,1749195090867,-151.0,0.00030986,7]
[364676291,1749195090881,-151.0,0.00030986,7]
[364676292,1749195090897,-151.0,0.00030986,7]
[364676293,1749195090911,-383.34317481,0.00030986,7]
[364676294,1749195090925,-151.0,0.00030986,7]
[364676295,1749195090940,-480.0,0.00030986,7]
[364676296,1749195090955,-276.13394064,0.00030986,7]
[364676297,1749195090969,-480.0,0.00030986,7]
[364676298,1749195090983,-639.09,0.00030986,7]
[364676299,1749195090997,-480.0,0.00030986,7]
[364676300,1749195091012,-480.0,0.00030986,7]
[364676301,1749195091026,-151.0,0.00030986,7]
[364676302,1749195091042,-151.0,0.00030986,7]
[364676303,1749195091056,-211.41374949,0.00030986,7]
[364676304,1749195091070,-480.0,0.00030986,7]
[364676305,1749195091084,-480.0,0.00030986,7]
[364676306,1749195091099,-421.134473,0.00030986,7]
[364676307,1749195091113,-421.13448,0.00030986,7]
[364676308,1749195091128,-480.0,0.00030986,7]
[364676309,1749195091142,-480.0,0.00030986,7]
[364676310,1749195091158,-535.07,0.00030986,7]
[364676311,1749195091173,-482.00886291,0.00030986,7]
[364676312,1749195091188,-335.222175,0.00030986,7]
[364676313,1749195091203,-335.222184,0.00030986,7]
[364676314,1749195091217,-480.0,0.00030986,7]
[364676315,1749195091231,-480.0,0.00030986,7]
[364676316,1749195091246,-480.0,0.00030986,7]
[364676317,1749195091262,-607.32,0.00030986,7]
[364676318,1749195091277,-191.964947,0.00030986,7]
[364676319,1749195091292,-191.964946,0.00030986,7]
[364676320,1749195091307,-480.0,0.00030986,7]
[364676321,1749195091321,-480.0,0.00030986,7]
[364676322,1749195091335,-480.0,0.00030986,7]
[364676323,1749195091350,-253.567617,0.00030986,7]
[364676324,1749195091360,-253.567618,0.00030986,7]
[364676325,1749195091369,-480.0,0.00030986,7]
[364676326,1749195091379,-480.0,0.00030986,7]
[364676327,1749195091389,-480.0,0.00030986,7]
[364676328,1749195091398,-480.0,0.00030986,7]
[364676329,1749195091408,-480.0,0.00030986,7]
[364676330,1749195091418,-743.81,0.00030986,7]
[364676331,1749195091427,-480.0,0.00030986,7]
[364676332,1749195091437,-480.0,0.00030986,7]
[364676333,1749195091446,-480.0,0.00030986,7]
[364676334,1749195091456,-524.59,0.00030986,7]
[364676335,1749195091465,-480.0,0.00030986,7]
[364676336,1749195091475,-480.0,0.00030986,7]
[364676337,1749195091484,-480.0,0.00030986,7]
[364676338,1749195091494,-1194.15,0.00030986,7]
[364676339,1749195091809,-480.0,0.00030986,7]
[364676340,1749195091840,-480.0,0.00030986,7]
[364676341,1749195091862,-739.76,0.00030986,7]
[364676342,1749195091872,-480.0,0.00030986,7]
[364676343,1749195091881,-579.78207384,0.00030986,7]
[364676344,1749195091890,-480.0,0.00030986,7]
[364676345,1749195091900,-548.8,0.00030986,7]
[364676346,1749195091910,-596.13,0.00030986,7]
[364676347,1749195091919,-728.32,0.00030986,7]
[364676348,1749195091929,-480.0,0.00030986,7]
[364676349,1749195091939,-480.0,0.00030986,7]
[364676350,1749195091949,-480.0,0.00030986,7]
[364676351,1749195091959,-543.43,0.00030986,7]
[364676352,1749195091969,-502.62,0.00030986,7]
[364676353,1749195091979,-480.0,0.00030986,7]
[364676354,1749195091988,-480.0,0.00030986,7]
[364676355,1749195091998,-480.0,0.00030986,7]
[364676356,1749195092007,-480.0,0.00030986,7]
[364676357,1749195092017,-480.0,0.00030986,7]
[364676358,1749195092027,-480.0,0.00030986,7]
[364676359,1749195092037,-480.0,0.00030986,7]
[364676360,1749195092047,-486.43,0.00030986,7]
[364676361,1749195092057,-480.0,0.00030986,7]
[364676362,1749195092067,-731.51,0.00030986,30]
[364676363,1749195092077,-480.0,0.00030986,7]
[364676364,1749195092087,-872.44,0.00030986,7]
[364676365,1749195092097,-480.0,0.00030986,7]
[364676366,1749195092107,-247.87578849,0.00030986,7]
[364676367,1749195092116,-480.0,0.00030986,7]
[364676368,1749195092126,-480.0,0.00030986,7]
[364676369,1749195092136,-844.68,0.00030986,7]
[364676370,1749195092146,-480.0,0.00030986,7]
[364676371,1749195092155,-480.0,0.00030986,7]
[364676372,1749195092167,-480.0,0.00030986,7]
[364676373,1749195092176,-480.0,0.00030986,7]
[364676374,1749195092185,-480.0,0.00030986,7]
[364676375,1749195092195,-480.0,0.00030986,7]
[364676376,1749195092205,-480.0,0.00030986,7]
[364676377,1749195092215,-480.0,0.00030986,7]
[364676378,1749195092224,-480.0,0.00030986,7]
[364676379,1749195092241,-480.0,0.00030986,7]
[364676380,1749195092257,-480.0,0.00030986,7]
[364676381,1749195092267,-480.0,0.00030986,7]
[364676382,1749195092277,-480.0,0.00030986,7]
[364676383,1749195092287,-480.0,0.00030986,7]
[364676384,1749195092296,-889.06,0.00030986,7]
[364676385,1749195092305,-480.0,0.00030986,7]
[364676386,1749195092315,-480.0,0.00030986,7]
[364676387,1749195092325,-480.0,0.00030986,7]
[364676388,1749195092334,-225.42699899,0.00030986,7]
[364676389,1749195092344,-645.26,0.00030986,7]
[364676390,1749195092354,-480.0,0.00030986,7]
[364676391,1749195092364,-1247.94,0.00030986,7]
[364676392,1749195092374,-760.34,0.00030986,7]
[364676393,1749195092383,-480.0,0.00030986,7]
[364676394,1749195092394,-480.0,0.00030986,7]
[364676395,1749195092406,-767.62,0.00030986,7]
[364676396,1749195092416,-1400.52,0.00030986,7]
[364676397,1749195092426,-495.4,0.00030986,7]
[364676398,1749195092435,-1416.2,0.00030986,7]
[364676399,1749195092445,-480.0,0.00030986,7]
[364676400,1749195092456,-2160.01623,0.00030986,7]
[364676401,1749195092465,-1026.87,0.00030986,7]
[364676402,1749195092475,-772.23,0.00030986,7]
[364676403,1749195092485,-1405.79,0.00030986,7]
[364676404,1749195092495,-704.39,0.00030986,7]
[364676405,1749195092506,-480.0,0.00030986,7]
[364676406,1749195092516,-959.69,0.00030986,7]
[364676407,1749195092526,-534.57,0.00030986,7]
[364676408,1749195092536,-480.0,0.00030986,7]
[364676409,1749195092546,-1697.41,0.00030986,7]
[364676410,1749195092556,-480.0,0.00030986,7]
[364676411,1749195092565,-1684.21,0.00030986,7]
[364676412,1749195092575,-627.99,0.00030986,7]
[364676413,1749195092584,-2000.000568,0.00030986,7]
[364676414,1749195092594,-480.0,0.00030986,7]
[364676415,1749195092604,-480.0,0.00030986,7]
[364676416,1749195092613,-654.73,0.00030986,7]
[364676417,1749195092623,-751.32,0.00030986,7]
[364676418,1749195092632,-480.0,0.00030986,7]
[364676419,1749195092641,-480.0,0.00030986,7]
[364676420,1749195092651,-480.0,0.00030986,7]
[364676421,1749195092660,-873.28,0.00030986,7]
[364676422,1749195092670,-480.0,0.00030986,7]
[364676423,1749195092679,-1201.48,0.00030986,7]
[364676424,1749195092688,-480.0,0.00030986,7]
[364676425,1749195092697,-480.0,0.00030986,7]
[364676426,1749195092707,-480.0,0.00030986,7]
[364676427,1749195092717,-480.0,0.00030986,7]
[364676428,1749195092726,-864.22,0.00030986,7]
[364676429,1749195092736,-791.03,0.00030986,7]
[364676430,1749195092745,-480.0,0.00030986,7]
[364676431,1749195092754,-480.0,0.00030986,7]
[364676432,1749195092763,-480.0,0.00030986,7]
[364676433,1749195092773,-480.0,0.00030986,7]
[364676434,1749195092782,-1004.71,0.00030986,7]
[364676435,1749195092791,-863.38,0.00030986,7]
[364676436,1749195092803,-1800.3,0.00030986,7]
[364676437,1749195092813,-1214.39,0.00030986,7]
[364676438,1749195092822,-480.0,0.00030986,7]
[364676439,1749195092832,-480.0,0.00030986,7]
[364676440,1749195092843,-480.0,0.00030986,7]
[364676441,1749195092852,-508.96,0.00030986,7]
[364676442,1749195092862,-480.0,0.00030986,7]
[364676443,1749195092872,-1103.57,0.00030986,7]
[364676444,1749195092883,-480.0,0.00030986,7]
[364676445,1749195092893,-480.0,0.00030986,7]
[364676446,1749195092903,-668.08,0.00030986,7]
[364676447,1749195092913,-1977.82,0.00030986,7]
[364676448,1749195092922,-480.0,0.00030986,7]
[364676449,1749195092931,-480.0,0.00030986,7]
[364676450,1749195092941,-480.0,0.00030986,7]
[364676451,1749195092951,-480.0,0.00030986,7]
[364676452,1749195092964,-480.0,0.00030986,7]
[364676453,1749195092976,-1493.9,0.00030986,7]
[364676454,1749195092986,-480.0,0.00030986,7]
[364676455,1749195092995,-480.0,0.00030986,7]
[364676456,1749195093005,-1437.75,0.00030986,7]
[364676457,1749195093015,-807.4,0.00030986,7]
[364676458,1749195093025,-480.0,0.00030986,7]
[364676459,1749195093035,-1344.78,0.00030986,7]
[364676460,1749195093044,-608.92,0.00030986,7]
[364676461,1749195093055,-480.0,0.00030986,7]
[364676462,1749195093064,-1484.88,0.00030986,7]
[364676463,1749195093074,-1083.59,0.00030986,7]
[364676464,1749195093084,-480.0,0.00030986,7]
[364676465,1749195093093,-480.0,0.00030986,7]
[364676466,1749195093103,-507.16,0.00030986,7]
[364676467,1749195093112,-480.0,0.00030986,7]
[364676468,1749195093122,-550.14,0.00030986,7]
[364676469,1749195093132,-480.0,0.00030986,7]
[364676470,1749195093142,-480.0,0.00030986,7]
[364676471,1749195093152,-480.0,0.00030986,7]
[364676472,1749195093162,-1226.95,0.00030986,7]
[364676473,1749195093172,-480.0,0.00030986,7]
[364676474,1749195093181,-2114.94,0.00030986,7]
[364676475,1749195093191,-480.0,0.00030986,7]
[364676476,1749195093200,-480.0,0.00030986,7]
[364676477,1749195093210,-735.75,0.00030986,7]
[364676478,1749195093220,-877.87,0.00030986,7]
[364676479,1749195093229,-1277.14,0.00030986,7]
[364676480,1749195093238,-480.0,0.00030986,7]
[364676481,1749195093248,-480.0,0.00030986,7]
[364676482,1749195093257,-480.0,0.00030986,7]
[364676483,1749195093266,-480.0,0.00030986,7]
[364676484,1749195093276,-480.0,0.00030986,7]
[364676485,1749195093285,-1290.57,0.00030986,7]
[364676486,1749195093294,-1271.05,0.00030986,7]
[364676487,1749195093304,-826.56,0.00030986,7]
[364676488,1749195093314,-480.0,0.00030986,7]
[364676489,1749195093324,-631.37,0.00030986,7]
[364676490,1749195093334,-480.0,0.00030986,7]
[364676491,1749195093343,-970.2,0.00030986,7]
[364676492,1749195093352,-480.0,0.00030986,7]
[364676493,1749195093362,-2539.38,0.00030986,7]
[364676494,1749195093371,-1542.51,0.00030986,7]
[364676495,1749195093380,-480.0,0.00030986,7]
[364676496,1749195093390,-480.0,0.00030986,7]
[364676497,1749195093400,-1000.0,0.00030986,21]
[364676498,1749195093412,-1163.68,0.00030986,7]
[364676499,1749195093422,-480.0,0.00030986,7]
[364676500,1749195093432,-858.39,0.00030986,7]
[364676501,1749195093442,-914.71,0.00030986,7]
[364676502,1749195093451,-2156.64,0.00030986,7]
[364676503,1749195093461,-915.61,0.00030986,7]
[364676504,1749195093472,-829.68,0.00030986,7]
[364676505,1749195093481,-827.97,0.00030986,7]
[364676506,1749195093492,-480.0,0.00030986,7]
[364676507,1749195093502,-480.0,0.00030986,7]
[364676508,1749195093513,-1713.66,0.00030986,7]
[364676509,1749195093523,-585.77,0.00030986,7]
[364676510,1749195093534,-480.0,0.00030986,7]
[364676511,1749195093544,-739.36,0.00030986,7]
[364676512,1749195093554,-876.27,0.00030986,7]
[364676513,1749195093564,-5400.04,0.00030986,7]
[364676514,1749195093574,-480.0,0.00030986,7]
[364676515,1749195093584,-2278.3,0.00030986,7]
[364676516,1749195093594,-516.58,0.00030986,7]
[364676517,1749195093604,-1129.21,0.00030986,7]
[364676518,1749195093615,-1447.61,0.00030986,7]
[364676519,1749195093625,-480.0,0.00030986,7]
[364676520,1749195093635,-480.0,0.00030986,7]
[364676521,1749195093644,-897.4,0.00030986,7]
[364676522,1749195093654,-1119.97,0.00030986,7]
[364676523,1749195093665,-6870.87,0.00030986,7]
[364676524,1749195093675,-156.547574,0.00030986,7]
[364676525,1749195093686,-480.0,0.00030986,7]
[364676526,1749195093696,-480.0,0.00030986,7]
[364676527,1749195093706,-2323.71,0.00030986,7]
[364676528,1749195093716,-2610.15,0.00030986,7]
[364676529,1749195093726,-1362.71,0.00030986,7]
[364676530,1749195093736,-637.38,0.00030986,7]
[364676531,1749195093746,-650.21,0.00030986,7]
[364676532,1749195093756,-1310.63,0.00030986,7]
[364676533,1749195093765,-2333.08,0.00030986,7]
[364676534,1749195093775,-639.4,0.00030986,7]
[364676535,1749195093784,-480.0,0.00030986,7]
[364676536,1749195093794,-588.89,0.00030986,7]
[364676537,1749195093804,-3922.8,0.00030986,7]
[364676538,1749195093816,-836.03,0.00030986,7]
[364676539,1749195093826,-480.0,0.00030986,7]
[364676540,1749195093836,-1666.57,0.00030986,7]
[364676541,1749195093847,-533.99,0.00030986,7]
[364676542,1749195093857,-480.0,0.00030986,7]
[364676543,1749195093866,-480.0,0.00030986,7]
[364676544,1749195093876,-1353.76,0.00030986,7]
[364676545,1749195093888,-480.0,0.00030986,7]
[364676546,1749195093898,-1524.78,0.00030986,7]
[364676547,1749195093908,-2057.71,0.00030986,7]
[364676548,1749195093918,-1978.82,0.00030986,7]
[364676549,1749195093928,-3977.08,0.00030986,7]
[364676550,1749195093937,-635.04,0.00030986,7]
[364676551,1749195093947,-665.52,0.00030986,7]
[364676552,1749195093957,-1908.77,0.00030986,7]
[364676553,1749195093966,-10873.55,0.00030986,7]
[364676554,1749195093975,-2487.41,0.00030986,7]
[364676555,1749195093985,-1758.02,0.00030986,7]
[364676556,1749195093994,-480.0,0.00030986,7]
[364676557,1749195094004,-2387.99,0.00030986,7]
[364676558,1749195094014,-2639.99,0.00030986,7]
[364676559,1749195094024,-1125.45,0.00030986,7]
[364676560,1749195094033,-1254.76,0.00030986,7]
[364676561,1749195094043,-480.0,0.00030986,7]
[364676562,1749195094053,-791.42,0.00030986,7]
[364676563,1749195094063,-947.63,0.00030986,7]
[364676564,1749195094073,-4581.4,0.00030986,7]
[364676565,1749195094083,-514.28,0.00030986,7]
[364676566,1749195094092,-2500.36,0.00030986,7]
[364676567,1749195094102,-480.0,0.00030986,7]
[364676568,1749195094111,-1679.3,0.00030986,7]
[364676569,1749195094121,-1666.44,0.00030986,7]
[364676570,1749195094130,-576.11,0.00030986,7]
[364676571,1749195094140,-2002.83,0.00030986,7]
[364676572,1749195094150,-1000.0,0.00030986,7]
[364676573,1749195094161,-2964.95,0.00030986,7]
[364676574,1749195094171,-1463.84,0.00030986,7]
[364676575,1749195094181,-480.0,0.00030986,7]
[364676576,1749195094191,-480.0,0.00030986,7]
[364676577,1749195094200,-1459.06,0.00030986,7]
[364676578,1749195094210,-2141.33,0.00030986,7]
[364676579,1749195094219,-3269.76,0.00030986,7]
[364676580,1749195094229,-1061.57,0.00030986,7]
[364676581,1749195094238,-2685.06,0.00030986,7]
[364676582,1749195094248,-480.0,0.00030986,7]
[364676583,1749195094257,-4171.06,0.00030986,7]
[364676584,1749195094267,-5962.32,0.00030986,7]
[364676585,1749195094277,-848.41,0.00030986,7]
[364676586,1749195094287,-1102.24,0.00030986,7]
[364676587,1749195094297,-2463.45,0.00030986,7]
[364676588,1749195094307,-493.16,0.00030986,7]
[364676589,1749195094316,-577.1,0.00030986,7]
[364676590,1749195094326,-1324.81,0.00030986,7]
[364676591,1749195094336,-2024.69,0.00030986,7]
[364676592,1749195094346,-1462.66,0.00030986,2]
[364676593,1749195094355,-17017.79,0.00030986,7]
[364676594,1749195094366,-2126.16,0.00030986,7]
[364676595,1749195094377,-159.258411,0.00030986,7]
[364676596,1749195094387,-1317.38,0.00030986,7]
[364676597,1749195094397,-4422.82,0.00030986,7]
[364676598,1749195094408,-1523.3,0.00030986,7]
[364676599,1749195094418,-3713.24,0.00030986,7]
[364676600,1749195094429,-1166.4,0.00030986,7]
[364676601,1749195094439,-1334.57,0.00030986,7]
[364676602,1749195094449,-480.0,0.00030986,7]
[364676603,1749195094459,-984.05,0.00030986,7]
[364676604,1749195094470,-2104.79,0.00030986,7]
[364676605,1749195094480,-6223.16,0.00030986,7]
[364676606,1749195094490,-1264.89,0.00030986,7]
[364676607,1749195094499,-1207.83,0.00030986,7]
[364676608,1749195094510,-2602.39,0.00030986,7]
[364676609,1749195094520,-12037.38,0.00030986,7]
[364676610,1749195094531,-649.09,0.00030986,7]
[364676611,1749195094541,-1829.73,0.00030986,7]
[364676612,1749195094551,-1014.46,0.00030986,7]
[364676613,1749195094561,-1745.74,0.00030986,7]
[364676614,1749195094571,-435.2697659,0.00030986,7]
[364676615,1749195094581,-480.0,0.00030986,7]
[364676616,1749195094592,-1071.48,0.00030986,7]
[364676617,1749195094602,-480.0,0.00030986,7]
[364676618,1749195094612,-480.0,0.00030986,7]
[364676619,1749195094622,-1415.9,0.00030986,7]
[364676620,1749195094632,-609.11,0.00030986,7]
[364676621,1749195094642,-10675.65,0.00030986,7]
[364676622,1749195094651,-480.0,0.00030986,7]
[364676623,1749195094661,-892.65,0.00030986,7]
[364676624,1749195094671,-2106.24,0.00030986,7]
[364676625,1749195094681,-2026.78,0.00030986,7]
[364676626,1749195094691,-3353.82,0.00030986,7]
[364676627,1749195094701,-1044.12,0.00030986,7]
[364676628,1749195094712,-2056.04,0.00030986,7]
[364676629,1749195094722,-480.0,0.00030986,7]
[364676630,1749195094732,-1485.03,0.00030986,7]
[364676631,1749195094742,-894.72,0.00030986,7]
[364676632,1749195094752,-5331.78,0.00030986,7]
[364676633,1749195094761,-5244.54,0.00030986,7]
[364676634,1749195094771,-1252.03,0.00030986,7]
[364676635,1749195094781,-496.19,0.00030986,7]
[364676636,1749195094790,-2497.24,0.00030986,7]
[364676637,1749195094800,-1074.2,0.00030986,7]
[364676638,1749195094813,-480.0,0.00030986,7]
[364676639,1749195094823,-480.0,0.00030986,7]
[364676640,1749195094832,-480.0,0.00030986,7]
[364676641,1749195094842,-480.0,0.00030986,7]
[364676642,1749195094853,-2043.06,0.00030986,7]
[364676643,1749195094862,-480.0,0.00030986,7]
[364676644,1749195094872,-480.0,0.00030986,7]
[364676645,1749195094882,-480.0,0.00030986,7]
[364676646,1749195094892,-1410.64,0.00030986,7]
[364676647,1749195094902,-721.27,0.00030986,7]
[364676648,1749195094912,-480.0,0.00030986,7]
[364676649,1749195094921,-735.38,0.00030986,7]
[364676650,1749195094931,-1593.16,0.00030986,7]
[364676651,1749195094941,-1896.04,0.00030986,7]
[364676652,1749195094951,-954.54,0.00030986,7]
[364676653,1749195094961,-480.0,0.00030986,7]
[364676654,1749195094971,-5092.66,0.00030986,7]
[364676655,1749195094981,-480.0,0.00030986,7]